fUST/lending_fUST_20251001
["ID","MTS","AMOUNT","RATE_DAILY","PERIOD"]
[388652688,1759300258839,-1834.41,0.00021091,2]
[388652689,1759300258849,-2584.74,0.00021091,2]
[388652690,1759300258858,-500.0,0.00021091,2]
[388652691,1759300258867,-500.0,0.00021091,2]
[388652692,1759300258876,-3037.8,0.00021091,2]
[388652693,1759300258886,-1577.62,0.00021091,2]
[388652694,1759300258896,-1290.34,0.00021091,2]
[388652695,1759300258905,-990.8,0.00021091,2]
[388652696,1759300258915,-606.82,0.00021091,2]
[388652697,1759300258925,-624.91,0.00021091,2]
[388652698,1759300259005,-2838.9,0.00021091,2]
[388652699,1759300259015,-500.0,0.00021091,2]
[388652700,1759300259025,-500.0,0.00021091,2]
[388652701,1759300259033,-500.0,0.00021091,2]
[388652702,1759300259043,-976.71,0.00021092,2]
[388652703,1759300259052,-426.65434766,0.00021092,2]
[388652704,1759300259061,-500.0,0.00021092,2]
[388652705,1759300259070,-500.0,0.00021092,2]
[388652706,1759300259079,-500.0,0.00021092,2]
[388652707,1759300259088,-500.0,0.00021092,2]
[388652708,1759300259098,-532.24,0.00021092,2]
[388652709,1759300259107,-696.54,0.00021092,2]
[388652710,1759300259117,-599.84,0.00021092,2]
[388652711,1759300259126,-500.0,0.00021092,2]
[388652712,1759300259135,-425.00110057,0.00021092,2]
[388652713,1759300259145,-1595.27,0.00021092,2]
[388652714,1759300259154,-1044.96,0.00021092,2]
[388652715,1759300259164,-816.6,0.00021092,2]
[388652716,1759300259174,-500.0,0.00021092,2]
[388652717,1759300259183,-500.0,0.00021092,2]
[388652718,1759300259193,-500.0,0.00021092,2]
[388652719,1759300259202,-2133.99,0.00021092,2]
[388652720,1759300259211,-790.26,0.00021092,2]
[388652721,1759300259221,-500.0,0.00021092,2]
[388652722,1759300259230,-255.54,0.00021092,2]
[388652723,1759300259240,-1073.26,0.00021092,2]
[388652724,1759300259250,-2985.05,0.00021092,2]
[388652725,1759300259259,-1203.65,0.00021092,2]
[388652726,1759300259268,-500.0,0.00021092,2]
[388652727,1759300259277,-1345.4,0.00021092,2]
[388652728,1759300259286,-1844.27,0.00021092,2]
[388652729,1759300259296,-744.0,0.00021092,2]
[388652730,1759300259305,-500.0,0.00021092,2]
[388652731,1759300259314,-2722.47,0.00021092,2]
[388652732,1759300259323,-704.37,0.00021092,2]
[388652733,1759300259332,-643.28,0.00021092,2]
[388652734,1759300259342,-2310.74,0.00021092,2]
[388652735,1759300259351,-500.0,0.00021092,2]
[388652736,1759300259360,-588.85,0.00021092,2]
[388652737,1759300259371,-591.97,0.00021092,2]
[388652738,1759300259380,-738.55,0.00021092,2]
[388652739,1759300259390,-1055.04,0.00021092,2]
[388652740,1759300259399,-860.04,0.00021092,2]
[388652741,1759300259409,-500.0,0.00021092,2]
[388652742,1759300259418,-500.0,0.00021092,2]
[388652743,1759300259428,-2129.67,0.00021092,2]
[388652744,1759300259437,-594.42,0.00021092,2]
[388652745,1759300259446,-500.0,0.00021092,2]
[388652746,1759300259455,-1943.54,0.00021092,2]
[388652747,1759300259464,-3021.33,0.00021092,2]
[388652748,1759300259473,-542.34,0.00021092,2]
[388652749,1759300259482,-500.0,0.00021093,2]
[388652750,1759300259492,-500.0,0.00021093,2]
[388652751,1759300259501,-500.0,0.00021093,2]
[388652752,1759300259510,-500.0,0.00021093,2]
[388652753,1759300259520,-500.0,0.00021093,2]
[388652754,1759300259529,-500.0,0.00021093,2]
[388652755,1759300259550,-1326.54,0.00021093,2]
[388652756,1759300259565,-500.0,0.00021093,2]
[388652757,1759300259585,-500.0,0.00021093,2]
[388652758,1759300259604,-1228.09,0.00021093,2]
[388652759,1759300259622,-523.58,0.00021093,2]
[388652760,1759300259639,-503.71,0.00021093,2]
[388652761,1759300259658,-655.06,0.00021093,2]
[388652762,1759300259672,-500.0,0.00021093,2]
[388652763,1759300259697,-500.0,0.00021093,2]
[388652764,1759300259717,-1189.11,0.00021093,2]
[388652765,1759300259737,-1363.71,0.00021093,2]
[388652766,1759300259751,-509.24,0.00021093,2]
[388652767,1759300259770,-500.0,0.00021093,2]
[388652768,1759300259786,-600.5,0.00021093,2]
[388652769,1759300259803,-500.0,0.00021093,2]
[388652770,1759300259822,-616.41,0.00021093,2]
[388652771,1759300259837,-1174.06,0.00021093,2]
[388652772,1759300259852,-500.0,0.00021093,2]
[388652773,1759300259867,-775.36,0.00021093,2]
[388652774,1759300259885,-500.0,0.00021093,2]
[388652775,1759300259900,-900.61,0.00021093,2]
[388652776,1759300259915,-767.43,0.00021093,2]
[388652777,1759300259930,-500.0,0.00021093,2]
[388652778,1759300259945,-775.18,0.00021093,2]
[388652779,1759300259962,-558.56,0.00021093,2]
[388652780,1759300259977,-709.03,0.00021093,2]
[388652781,1759300259992,-609.6,0.00021093,2]
[388652782,1759300260006,-556.02,0.00021093,2]
[388652783,1759300260027,-814.04,0.00021093,2]
[388652784,1759300260044,-1000.92,0.00021093,2]
[388652785,1759300260058,-1230.23,0.00021093,2]
[388652786,1759300260073,-1305.99,0.00021093,2]
[388652787,1759300260088,-694.39,0.00021093,2]
[388652788,1759300260103,-555.89,0.00021093,2]
[388652789,1759300260117,-512.35,0.00021093,2]
[388652790,1759300260132,-500.0,0.00021093,2]
[388652791,1759300260146,-848.29,0.00021093,2]
[388652792,1759300260161,-2483.05,0.00021093,2]
[388652793,1759300260177,-500.0,0.00021093,2]
[388652794,1759300260191,-500.0,0.00021093,2]
[388652795,1759300260206,-1323.84,0.00021093,2]
[388652796,1759300260221,-1221.22,0.00021093,2]
[388652797,1759300260236,-1683.66,0.00021093,2]
[388652798,1759300260251,-500.0,0.00021093,2]
[388652799,1759300260266,-893.56,0.00021093,2]
[388652800,1759300260281,-1673.81,0.00021093,2]
[388652801,1759300260297,-1460.82,0.00021093,2]
[388652802,1759300260312,-847.13,0.00021093,2]
[388652803,1759300260327,-500.0,0.00021093,2]
[388652804,1759300260344,-500.0,0.00021093,2]
[388652805,1759300260359,-500.0,0.00021093,2]
[388652806,1759300260374,-2814.77,0.00021093,2]
[388652807,1759300260388,-500.0,0.00021093,2]
[388652808,1759300260403,-500.0,0.00021093,2]
[388652809,1759300260418,-500.0,0.00021093,2]
[388652810,1759300260526,-816.61,0.00021093,2]
[388652811,1759300260536,-649.89,0.00021093,2]
[388652812,1759300260546,-500.0,0.00021093,2]
[388652813,1759300260555,-1006.68,0.00021093,2]
[388652814,1759300260565,-167.25259092,0.00021094,2]
[388652815,1759300260574,-439.0,0.00021094,2]
[388652816,1759300260584,-500.0,0.00021094,2]
[388652817,1759300260593,-3416.19,0.00021094,2]
[388652818,1759300260602,-943.13,0.00021094,2]
[388652819,1759300260612,-460.00724043,0.00021094,2]
[388652820,1759300260621,-546.02,0.00021094,2]
[388652821,1759300260631,-500.0,0.00021094,2]
[388652822,1759300260640,-403.89819756,0.00021094,2]
[388652823,1759300260650,-1377.23,0.00021094,2]
[388652824,1759300260659,-500.0,0.00021094,2]
[388652825,1759300260669,-500.0,0.00021094,2]
[388652826,1759300260679,-659.67,0.00021094,2]
[388652827,1759300260689,-830.66,0.00021094,2]
[388652828,1759300260699,-764.52,0.00021094,2]
[388652829,1759300260708,-500.0,0.00021094,2]
[388652830,1759300260718,-500.0,0.00021094,2]
[388652831,1759300260729,-501.81,0.00021094,2]
[388652832,1759300260741,-500.0,0.00021094,2]
[388652833,1759300260751,-736.74,0.00021094,2]
[388652834,1759300260760,-500.0,0.00021094,2]
[388652835,1759300260770,-2706.95,0.00021094,2]
[388652836,1759300260780,-500.0,0.00021094,2]
[388652837,1759300260789,-598.42,0.00021094,2]
[388652838,1759300260798,-1415.76,0.00021094,2]
[388652839,1759300260810,-613.83,0.00021094,2]
[388652840,1759300260819,-632.86,0.00021094,2]
[388652841,1759300260829,-1640.0,0.00021094,2]
[388652842,1759300260839,-500.0,0.00021095,2]
[388652843,1759300260848,-713.88,0.00021095,2]
[388652844,1759300260857,-500.0,0.00021095,2]
[388652845,1759300260867,-500.0,0.00021095,2]
[388652846,1759300260877,-500.0,0.00021095,2]
[388652847,1759300260886,-553.53,0.00021095,2]
[388652848,1759300260895,-500.0,0.00021095,2]
[388652849,1759300260905,-515.74,0.00021095,2]
[388652850,1759300260915,-500.0,0.00021095,2]
[388652851,1759300260924,-484.08200638,0.00021095,2]
[388652852,1759300260934,-500.0,0.00021095,2]
[388652853,1759300260943,-1250.0,0.00021095,2]
[388652854,1759300260953,-500.0,0.00021095,2]
[388652855,1759300260962,-513.86,0.00021095,2]
[388652856,1759300260971,-500.0,0.00021095,2]
[388652857,1759300260981,-500.0,0.00021095,2]
[388652858,1759300260990,-500.0,0.00021095,2]
[388652859,1759300261000,-561.73,0.00021095,2]
[388652860,1759300261009,-500.0,0.00021095,2]
[388652861,1759300261019,-500.0,0.00021095,2]
[388652862,1759300261028,-500.0,0.00021095,2]
[388652863,1759300261037,-500.0,0.00021095,2]
[388652864,1759300261047,-412.78,0.00021095,2]
[388652865,1759300261055,-500.0,0.00021095,2]
[388652866,1759300261065,-186.30877008,0.00021095,2]
[388652867,1759300261074,-500.0,0.00021095,2]
[388652868,1759300261084,-500.0,0.00021095,2]
[388652869,1759300261093,-500.0,0.00021095,2]
[388652870,1759300261102,-500.0,0.00021095,2]
[388652871,1759300261112,-275.02469634,0.00021095,2]
[388652872,1759300261123,-500.0,0.00021095,2]
[388652873,1759300261132,-557.67363562,0.00021095,2]
[388652874,1759300261142,-524.18,0.00021095,2]
[388652875,1759300261154,-500.0,0.00021095,2]
[388652876,1759300261164,-500.0,0.00021095,2]
[388652877,1759300261173,-500.0,0.00021095,2]
[388652878,1759300261183,-500.0,0.00021095,2]
[388652879,1759300261192,-500.0,0.00021095,2]
[388652880,1759300261201,-646.25,0.00021095,2]
[388652881,1759300261211,-539.33,0.00021095,2]
[388652882,1759300261220,-500.0,0.00021095,2]
[388652883,1759300261230,-657.79,0.00021095,2]
[388652884,1759300261239,-500.0,0.00021095,2]
[388652885,1759300261248,-500.0,0.00021095,2]
[388652886,1759300261258,-1606.71,0.00021095,2]
[388652887,1759300261268,-686.68,0.00021095,2]
[388652888,1759300261278,-2286.35,0.00021095,2]
[388652889,1759300261287,-1437.67,0.00021095,2]
[388652890,1759300261296,-500.0,0.00021095,2]
[388652891,1759300261306,-1047.18,0.00021095,2]
[388652892,1759300261315,-1014.26,0.00021095,2]
[388652893,1759300261324,-500.0,0.00021095,2]
[388652894,1759300261334,-500.0,0.00021095,2]
[388652895,1759300261344,-2286.01,0.00021095,2]
[388652896,1759300261353,-2031.62,0.00021095,2]
[388652897,1759300261362,-500.0,0.00021095,2]
[388652898,1759300261372,-500.0,0.00021095,2]
[388652899,1759300261381,-221.14958848,0.00021121,2]
[388652900,1759300261390,-1000.0,0.00021121,2]
[388652901,1759300261403,-575.41832241,0.00021121,2]
[388652902,1759300261413,-1000.0,0.00021121,2]
[388652903,1759300261423,-1000.0,0.00021121,2]
[388652904,1759300261434,-1000.0,0.00021121,2]
[388652905,1759300261445,-1000.0,0.00021121,2]
[388652906,1759300261458,-311.22347197,0.00021121,2]
[388652907,1759300261468,-1000.0,0.00021121,2]
[388652908,1759300261478,-501.61068952,0.00021121,2]
[388652909,1759300261488,-1002.61971287,0.00021121,2]
[388652910,1759300261498,-501.65264347,0.00021121,2]
[388652911,1759300261507,-1000.0,0.00021121,2]
[388652912,1759300261518,-500.73488065,0.00021121,2]
[388652913,1759300261527,-818.02417524,0.00021121,2]
[388652914,1759300261538,-171.57956609,0.00021121,2]
[388652915,1759300261548,-501.93495064,0.00021121,2]
[388652916,1759300261557,-1002.66302311,0.00021121,2]
[388652917,1759300261567,-506.77488098,0.00021121,2]
[388652918,1759300261576,-1000.0,0.00021121,2]
[388652919,1759300261586,-1000.0,0.00021121,2]
[388652920,1759300261596,-1000.0,0.00021121,2]
[388652921,1759300261606,-501.62996691,0.00021121,2]
[388652922,1759300261615,-502.60943045,0.00021121,2]
[388652923,1759300261625,-502.60992383,0.00021121,2]
[388652924,1759300261634,-506.20201655,0.00021121,2]
[388652925,1759300261643,-913.1103713,0.00021121,2]
[388652926,1759300261656,-1000.0,0.00021121,2]
[388652927,1759300261666,-501.02883025,0.00021121,2]
[388652928,1759300261676,-1000.0,0.00021121,2]
[388652929,1759300261685,-501.12714796,0.00021121,2]
[388652930,1759300261694,-1000.0,0.00021121,2]
[388652931,1759300261703,-501.51195994,0.00021121,2]
[388652932,1759300261712,-158.96308781,0.00021121,2]
[388652933,1759300261723,-1000.0,0.00021121,2]
[388652934,1759300261807,-1000.0,0.00021121,2]
[388652935,1759300261817,-500.91867584,0.00021121,2]
[388652936,1759300261826,-168.0,0.00021133,2]
[388652937,1759300261837,-500.0,0.00021164,2]
[388652938,1759300261847,-225.31730289,0.00021164,2]
[388652939,1759300261857,-6187.86300109,0.00021168,2]
[388652940,1759300261866,-151.0,0.000212,3]
[388652941,1759300261876,-168.0,0.0002127,2]
[388652942,1759300261886,-168.0,0.00021272,2]
[388652943,1759300261897,-168.0,0.00021293,2]
[388652944,1759300261907,-500.0,0.00021298,2]
[388652945,1759300261916,-500.0,0.00021298,2]
[388652946,1759300261925,-520.0,0.00021298,3]
[388652947,1759300261936,-500.0,0.00021298,2]
[388652948,1759300261945,-500.0,0.00021298,2]
[388652949,1759300261954,-500.0,0.00021298,2]
[388652950,1759300261963,-423.59061024,0.00021298,2]
[388652951,1759300261973,-424.80047157,0.00021298,2]
[388652952,1759300261982,-500.0,0.00021298,2]
[388652953,1759300261991,-591.84,0.00021298,2]
[388652954,1759300262000,-813.58,0.00021298,2]
[388652955,1759300262010,-752.21,0.00021298,2]
[388652956,1759300262019,-500.0,0.00021298,2]
[388652957,1759300262028,-725.57,0.00021298,2]
[388652958,1759300262037,-601.52,0.00021298,2]
[388652959,1759300262047,-500.0,0.00021298,2]
[388652960,1759300262056,-500.0,0.00021298,2]
[388652961,1759300262065,-500.0,0.00021298,2]
[388652962,1759300262074,-500.0,0.00021298,2]
[388652963,1759300262084,-500.0,0.00021298,2]
[388652964,1759300262093,-500.0,0.00021298,2]
[388652965,1759300262102,-500.0,0.00021298,2]
[388652966,1759300262111,-500.0,0.00021298,2]
[388652967,1759300262121,-500.0,0.00021298,2]
[388652968,1759300262130,-500.0,0.00021298,2]
[388652969,1759300262139,-500.0,0.00021298,2]
[388652970,1759300262149,-500.0,0.00021298,2]
[388652971,1759300262158,-500.0,0.00021298,2]
[388652972,1759300262167,-500.0,0.00021298,2]
[388652973,1759300262176,-500.0,0.00021298,2]
[388652974,1759300262185,-500.0,0.00021298,2]
[388652975,1759300262194,-500.0,0.00021298,2]
[388652976,1759300262203,-500.0,0.00021298,2]
[388652977,1759300262212,-500.0,0.00021298,2]
[388652978,1759300262221,-1778.41,0.00021298,2]
[388652979,1759300262231,-500.0,0.00021298,2]
[388652980,1759300262240,-541.56752063,0.00021298,2]
[388652981,1759300262249,-500.0,0.00021298,2]
[388652982,1759300262258,-500.0,0.00021298,2]
[388652983,1759300262268,-500.0,0.00021298,2]
[388652984,1759300262277,-500.0,0.00021298,2]
[388652985,1759300262287,-500.0,0.00021298,2]
[388652986,1759300262296,-500.0,0.00021298,2]
[388652987,1759300262306,-500.0,0.00021298,2]
[388652988,1759300262317,-600.2,0.00021298,2]
[388652989,1759300262326,-679.62,0.00021298,2]
[388652990,1759300262335,-500.0,0.00021298,2]
[388652991,1759300262345,-500.0,0.00021298,2]
[388652992,1759300262356,-733.7,0.00021298,2]
[388652993,1759300262365,-500.0,0.00021298,2]
[388652994,1759300262375,-500.0,0.00021298,2]
[388652995,1759300262385,-800.55,0.00021298,2]
[388652996,1759300262396,-2172.05,0.00021298,2]
[388652997,1759300262406,-500.0,0.00021298,2]
[388652998,1759300262416,-282.33673221,0.00021298,2]
[388652999,1759300262428,-500.0,0.00021298,2]
[388653000,1759300262438,-500.0,0.00021298,2]
[388653001,1759300262448,-435.08703391,0.00021298,2]
[388653002,1759300262458,-160.23146803,0.00021298,2]
[388653003,1759300262467,-500.0,0.00021298,2]
[388653004,1759300262478,-770.05,0.00021298,2]
[388653005,1759300262487,-424.02029042,0.00021298,2]
[388653006,1759300262497,-500.0,0.00021298,2]
[388653007,1759300262506,-500.0,0.00021298,2]
[388653008,1759300262515,-500.0,0.00021298,2]
[388653009,1759300262525,-500.0,0.00021298,2]
[388653010,1759300262535,-500.0,0.00021298,2]
[388653011,1759300262544,-527.39,0.00021298,2]
[388653012,1759300262554,-610.31,0.00021298,2]
[388653013,1759300262563,-578.69,0.00021298,2]
[388653014,1759300262572,-500.0,0.00021298,2]
[388653015,1759300262581,-500.0,0.00021298,2]
[388653016,1759300262590,-500.0,0.00021298,2]
[388653017,1759300262600,-500.0,0.00021298,2]
[388653018,1759300262609,-500.65,0.00021298,2]
[388653019,1759300262618,-996.5,0.00021298,2]
[388653020,1759300262627,-424.82415666,0.00021298,2]
[388653021,1759300262637,-250.0,0.000213,10]
[388653022,1759300262648,-330.0,0.00021331,2]
[388653023,1759300262659,-313.94,0.00021357,3]
[388653024,1759300262669,-2511.56,0.00021358,3]
[388653025,1759300262678,-1255.78,0.00021358,3]
[388653026,1759300262688,-627.9,0.00021358,3]
[388653027,1759300262698,-520.8916656,0.00021358,2]
[388653028,1759300262707,-5023.14,0.00021359,3]
[388653029,1759300262716,-500.0,0.00021363,2]
[388653030,1759300262726,-340.25521046,0.00021363,2]
[388653031,1759300262738,-500.0,0.00021363,2]
[388653032,1759300262747,-500.0,0.00021363,2]
[388653033,1759300262757,-500.0,0.00021363,2]
[388653034,1759300262766,-500.0,0.00021365,2]
[388653035,1759300262777,-500.0,0.00021365,2]
[388653036,1759300262786,-633.83,0.00021365,2]
[388653037,1759300262795,-500.0,0.00021365,2]
[388653038,1759300262807,-1834.41,0.00021365,2]
[388653039,1759300262816,-2584.74,0.00021365,2]
[388653040,1759300262825,-500.0,0.00021365,2]
[388653041,1759300262835,-366.4539804,0.00021365,2]
[388653042,1759300262844,-3037.8,0.00021365,2]
[388653043,1759300262853,-1577.62,0.00021365,2]
[388653044,1759300262862,-1290.34,0.00021365,2]
[388653045,1759300262872,-990.8,0.00021365,2]
[388653046,1759300262882,-606.82,0.00021365,2]
[388653047,1759300262891,-624.91,0.00021365,2]
[388653048,1759300262902,-2838.9,0.00021365,2]
[388653049,1759300262912,-500.0,0.00021365,2]
[388653050,1759300262921,-604.22093868,0.00021365,2]
[388653051,1759300262931,-500.0,0.00021365,2]
[388653052,1759300262940,-976.71,0.00021366,2]
[388653053,1759300262949,-500.0,0.00021366,2]
[388653054,1759300262958,-500.0,0.00021366,2]
[388653055,1759300262968,-500.0,0.00021366,2]
[388653056,1759300262977,-500.0,0.00021366,2]
[388653057,1759300262986,-532.24,0.00021366,2]
[388653058,1759300262995,-696.54,0.00021366,2]
[388653059,1759300263004,-599.84,0.00021366,2]
[388653060,1759300263013,-500.0,0.00021366,2]
[388653061,1759300263022,-1595.27,0.00021366,2]
[388653062,1759300263032,-1044.96,0.00021366,2]
[388653063,1759300263041,-816.6,0.00021366,2]
[388653064,1759300263050,-500.0,0.00021366,2]
[388653065,1759300263059,-500.0,0.00021366,2]
[388653066,1759300263068,-500.0,0.00021366,2]
[388653067,1759300263077,-2133.99,0.00021366,2]
[388653068,1759300263087,-790.26,0.00021366,2]
[388653069,1759300263095,-500.0,0.00021366,2]
[388653070,1759300263105,-1073.26,0.00021366,2]
[388653071,1759300263114,-2985.05,0.00021366,2]
[388653072,1759300263123,-1203.65,0.00021366,2]
[388653073,1759300263132,-500.0,0.00021366,2]
[388653074,1759300263142,-1345.4,0.00021366,2]
[388653075,1759300263151,-1844.27,0.00021366,2]
[388653076,1759300263160,-744.0,0.00021366,2]
[388653077,1759300263170,-500.0,0.00021366,2]
[388653078,1759300263179,-2722.47,0.00021366,2]
[388653079,1759300263188,-704.37,0.00021366,2]
[388653080,1759300263197,-643.28,0.00021366,2]
[388653081,1759300263206,-2310.74,0.00021366,2]
[388653082,1759300263215,-500.0,0.00021366,2]
[388653083,1759300263225,-588.85,0.00021366,2]
[388653084,1759300263235,-591.97,0.00021366,2]
[388653085,1759300263244,-738.55,0.00021366,2]
[388653086,1759300263254,-1055.04,0.00021366,2]
[388653087,1759300263263,-860.04,0.00021366,2]
[388653088,1759300263273,-500.0,0.00021366,2]
[388653089,1759300263282,-500.0,0.00021366,2]
[388653090,1759300263291,-2129.67,0.00021366,2]
[388653091,1759300263301,-594.42,0.00021366,2]
[388653092,1759300263310,-500.0,0.00021366,2]
[388653093,1759300263320,-1943.54,0.00021366,2]
[388653094,1759300263329,-3021.33,0.00021366,2]
[388653095,1759300263339,-542.34,0.00021366,2]
[388653096,1759300263348,-500.0,0.00021367,2]
[388653097,1759300263357,-500.0,0.00021367,2]
[388653098,1759300263367,-407.47546568,0.00021367,2]
[388653099,1759300263376,-500.0,0.00021367,2]
[388653100,1759300263386,-500.0,0.00021367,2]
[388653101,1759300263395,-1326.54,0.00021367,2]
[388653102,1759300263405,-500.0,0.00021367,2]
[388653103,1759300263414,-500.0,0.00021367,2]
[388653104,1759300263423,-1228.09,0.00021367,2]
[388653105,1759300263432,-523.58,0.00021367,2]
[388653106,1759300263442,-503.71,0.00021367,2]
[388653107,1759300263451,-655.06,0.00021367,2]
[388653108,1759300263461,-500.0,0.00021367,2]
[388653109,1759300263470,-500.0,0.00021367,2]
[388653110,1759300263480,-1189.11,0.00021367,2]
[388653111,1759300263490,-1363.71,0.00021367,2]
[388653112,1759300263500,-509.24,0.00021367,2]
[388653113,1759300263510,-500.0,0.00021367,2]
[388653114,1759300263520,-600.5,0.00021367,2]
[388653115,1759300263531,-500.0,0.00021367,2]
[388653116,1759300263540,-616.41,0.00021367,2]
[388653117,1759300263550,-1174.06,0.00021367,2]
[388653118,1759300263560,-251.81219487,0.00021367,2]
[388653119,1759300263570,-775.36,0.00021367,2]
[388653120,1759300263580,-500.0,0.00021367,2]
[388653121,1759300263589,-900.61,0.00021367,2]
[388653122,1759300263600,-767.43,0.00021367,2]
[388653123,1759300263609,-500.0,0.00021367,2]
[388653124,1759300263620,-775.18,0.00021367,2]
[388653125,1759300263630,-558.56,0.00021367,2]
[388653126,1759300263639,-709.03,0.00021367,2]
[388653127,1759300263650,-609.6,0.00021367,2]
[388653128,1759300263659,-556.02,0.00021367,2]
[388653129,1759300263672,-814.04,0.00021367,2]
[388653130,1759300263682,-1000.92,0.00021367,2]
[388653131,1759300263691,-1230.23,0.00021367,2]
[388653132,1759300263701,-1305.99,0.00021367,2]
[388653133,1759300263711,-694.39,0.00021367,2]
[388653134,1759300263720,-555.89,0.00021367,2]
[388653135,1759300263731,-512.35,0.00021367,2]
[388653136,1759300263743,-500.0,0.00021367,2]
[388653137,1759300263753,-848.29,0.00021367,2]
[388653138,1759300263763,-2483.05,0.00021367,2]
[388653139,1759300263774,-500.0,0.00021367,2]
[388653140,1759300263783,-500.0,0.00021367,2]
[388653141,1759300263793,-1323.84,0.00021367,2]
[388653142,1759300263802,-1221.22,0.00021367,2]
[388653143,1759300263814,-1683.66,0.00021367,2]
[388653144,1759300263824,-500.0,0.00021367,2]
[388653145,1759300263834,-893.56,0.00021367,2]
[388653146,1759300263845,-1673.81,0.00021367,2]
[388653147,1759300263856,-1460.82,0.00021367,2]
[388653148,1759300263867,-847.13,0.00021367,2]
[388653149,1759300263878,-500.0,0.00021367,2]
[388653150,1759300263889,-500.0,0.00021367,2]
[388653151,1759300263903,-500.0,0.00021367,2]
[388653152,1759300263914,-2814.77,0.00021367,2]
[388653153,1759300263926,-224.37621563,0.00021367,2]
[388653154,1759300263937,-500.0,0.00021367,2]
[388653155,1759300263947,-500.0,0.00021367,2]
[388653156,1759300263958,-816.61,0.00021367,2]
[388653157,1759300263968,-649.89,0.00021367,2]
[388653158,1759300263978,-500.0,0.00021367,2]
[388653159,1759300263988,-1006.68,0.00021367,2]
[388653160,1759300263998,-439.0,0.00021368,2]
[388653161,1759300264008,-500.0,0.00021368,2]
[388653162,1759300264018,-3416.19,0.00021368,2]
[388653163,1759300264027,-943.13,0.00021368,2]
[388653164,1759300264037,-546.02,0.00021368,2]
[388653165,1759300264046,-500.0,0.00021368,2]
[388653166,1759300264056,-1377.23,0.00021368,2]
[388653167,1759300264162,-500.0,0.00021368,2]
[388653168,1759300264173,-500.0,0.00021368,2]
[388653169,1759300264183,-659.67,0.00021368,2]
[388653170,1759300264193,-830.66,0.00021368,2]
[388653171,1759300264203,-764.52,0.00021368,2]
[388653172,1759300264213,-500.0,0.00021368,2]
[388653173,1759300264224,-500.0,0.00021368,2]
[388653174,1759300264234,-501.81,0.00021368,2]
[388653175,1759300264245,-500.0,0.00021368,2]
[388653176,1759300264255,-736.74,0.00021368,2]
[388653177,1759300264265,-500.0,0.00021368,2]
[388653178,1759300264274,-2706.95,0.00021368,2]
[388653179,1759300264284,-500.0,0.00021368,2]
[388653180,1759300264294,-598.42,0.00021368,2]
[388653181,1759300264303,-1415.76,0.00021368,2]
[388653182,1759300264313,-613.83,0.00021368,2]
[388653183,1759300264324,-632.86,0.00021368,2]
[388653184,1759300264334,-1640.0,0.00021368,2]
[388653185,1759300264344,-500.0,0.00021369,2]
[388653186,1759300264354,-713.88,0.00021369,2]
[388653187,1759300264364,-494.9007129,0.00021369,2]